[Event "Masterklassen 2025"]
[Site "Uppsala, Sweden"]
[Date "2025.07.04"]
[Round "7.9"]
[White "Ostensson, Julia"]
[Black "Ask, Josef"]
[Result "0-1"]
[TimeControl "90 min for 40 move + 30 min with an increment of 30 sec starting move 1"]
[BlackTitle "FM"]
[WhiteFideId "1747703"]
[BlackFideId "1704583"]
[WhiteElo "2005"]
[BlackElo "2121"]

1. d4 {[%clk 01:30:57]} {[%emt 00:00:03]} b6 {[%clk 01:30:45]} {[%emt
00:00:15]} 2. e4 {[%clk 01:30:02]} {[%emt 00:01:25]} Bb7 {[%clk 01:31:10]}
{[%emt 00:00:05]} 3. Nc3 {[%clk 01:30:14]} {[%emt 00:00:18]} e6 {[%clk
01:31:30]} {[%emt 00:00:10]} 4. Be3 {[%clk 01:25:47]} {[%emt 00:04:57]} Bb4
{[%clk 01:30:49]} {[%emt 00:01:11]} 5. f3 {[%clk 01:17:24]} {[%emt 00:08:53]}
d5 {[%clk 01:26:27]} {[%emt 00:04:52]} 6. Nge2 {[%clk 01:15:56]} {[%emt
00:01:58]} dxe4 {[%clk 01:26:01]} {[%emt 00:00:55]} 7. fxe4 {[%clk 01:15:22]}
{[%emt 00:01:05]} Qh4+ {[%clk 01:24:27]} {[%emt 00:02:05]} 8. Bf2 {[%clk
01:06:16]} {[%emt 00:09:35]} Qxe4 {[%clk 01:23:59]} {[%emt 00:00:58]} 9. Qd2
{[%clk 01:06:26]} {[%emt 00:00:21]} Bxc3 {[%clk 01:23:49]} {[%emt 00:00:39]} 10.
Qxc3 {[%clk 01:06:32]} {[%emt 00:00:25]} Nf6 {[%clk 01:22:33]} {[%emt
00:01:46]} 11. Qxc7 {[%clk 01:01:30]} {[%emt 00:05:32]} O-O {[%clk 01:22:23]}
{[%emt 00:00:39]} 12. c3 {[%clk 00:59:14]} {[%emt 00:02:46]} Nbd7 {[%clk
01:15:56]} {[%emt 00:06:57]} 13. O-O-O {[%clk 00:50:25]} {[%emt 00:09:20]} Rac8
{[%clk 01:15:12]} {[%emt 00:01:14]} 14. Qf4 {[%clk 00:47:16]} {[%emt 00:03:39]}
e5 {[%clk 01:03:24]} {[%emt 00:12:17]} 15. dxe5 {[%clk 00:22:07]} {[%emt
00:25:39]} Nxe5 {[%clk 01:03:35]} {[%emt 00:00:19]} 16. Qxe4 {[%clk 00:04:20]}
{[%emt 00:18:18]} Nxe4 {[%clk 01:03:59]} {[%emt 00:00:06]} 17. Bd4 {[%clk
00:04:01]} {[%emt 00:00:48]} Ng4 {[%clk 01:02:20]} {[%emt 00:02:09]} 18. Rg1
{[%clk 00:01:06]} {[%emt 00:03:25]} Nxh2 {[%clk 01:02:22]} {[%emt 00:00:28]} 19.
Nf4 {[%clk 00:00:32]} {[%emt 00:01:04]} Nxf1 {[%clk 00:56:24]} {[%emt
00:06:29]} 20. Rdxf1 {[%clk 00:00:35]} {[%emt 00:00:26]} Ng3 {[%clk 00:51:04]}
{[%emt 00:05:50]} 21. Re1 {[%clk 00:00:32]} {[%emt 00:00:33]} Rfd8 {[%clk
00:48:42]} {[%emt 00:02:52]} 22. Kb1 {[%clk 00:00:38]} {[%emt 00:00:24]} Nf5
{[%clk 00:47:57]} {[%emt 00:01:15]} 23. Bf2 {[%clk 00:00:51]} {[%emt 00:00:17]}
Rd2 {[%clk 00:47:46]} {[%emt 00:00:41]} 24. Ne2 {[%clk 00:00:35]} {[%emt
00:00:47]} Ba6 {[%clk 00:47:01]} {[%emt 00:01:15]} 25. Ng3 {[%clk 00:00:31]}
{[%emt 00:00:34]} Rxf2 {[%clk 00:47:02]} {[%emt 00:00:28]} 26. Nxf5 {[%clk
00:00:45]} {[%emt 00:00:17]} Bd3+ {[%clk 00:46:34]} {[%emt 00:00:58]} 27. Ka1
{[%clk 00:01:03]} {[%emt 00:00:12]} Rxf5 {[%clk 00:46:40]} {[%emt 00:00:24]} 28.
g4 {[%clk 00:00:43]} {[%emt 00:00:49]} Ra5 {[%clk 00:46:40]} {[%emt 00:00:30]}
29. Rg3 {[%clk 00:00:57]} {[%emt 00:00:17]} Bc4 {[%clk 00:46:42]} {[%emt
00:00:28]} 30. a3 {[%clk 00:00:54]} {[%emt 00:00:33]} Be6 {[%clk 00:46:59]}
{[%emt 00:00:12]} 31. Rge3 {[%clk 00:00:44]} {[%emt 00:00:39]} g6 {[%clk
00:47:18]} {[%emt 00:00:12]} 32. c4 {[%clk 00:00:37]} {[%emt 00:00:37]} Rxc4
{[%clk 00:47:32]} {[%emt 00:00:16]} 0-1

[Event "Masterklassen 2025"]
[Site "Uppsala, Sweden"]
[Date "2025.07.04"]
[Round "7.10"]
[White "Johansson, William"]
[Black "Sundin, Emanuel"]
[Result "0-1"]
[TimeControl "90 min for 40 move + 30 min with an increment of 30 sec starting move 1"]
[WhiteFideId "1744070"]
[BlackFideId "1719173"]
[WhiteElo "2026"]
[BlackElo "2117"]

1. e4 {[%clk 01:30:43]} {[%emt 00:00:17]} c5 {[%clk 01:30:47]} {[%emt
00:00:13]} 2. Nf3 {[%clk 01:31:07]} {[%emt 00:00:06]} g6 {[%clk 01:31:06]}
{[%emt 00:00:11]} 3. d4 {[%clk 01:30:11]} {[%emt 00:01:26]} cxd4 {[%clk
01:31:30]} {[%emt 00:00:06]} 4. Nxd4 {[%clk 01:28:00]} {[%emt 00:02:42]} Nc6
{[%clk 01:31:25]} {[%emt 00:00:34]} 5. Nc3 {[%clk 01:28:10]} {[%emt 00:00:20]}
Bg7 {[%clk 01:31:20]} {[%emt 00:00:35]} 6. Be3 {[%clk 01:28:25]} {[%emt
00:00:16]} Nf6 {[%clk 01:31:15]} {[%emt 00:00:34]} 7. Bc4 {[%clk 01:28:26]}
{[%emt 00:00:30]} O-O {[%clk 01:31:23]} {[%emt 00:00:21]} 8. f3 {[%clk
01:27:56]} {[%emt 00:01:00]} Qb6 {[%clk 01:29:00]} {[%emt 00:02:54]} 9. O-O
{[%clk 01:11:04]} {[%emt 00:17:21]} Qxb2 {[%clk 01:16:52]} {[%emt 00:12:39]} 10.
Nxc6 {[%clk 01:06:08]} {[%emt 00:05:25]} bxc6 {[%clk 01:10:56]} {[%emt
00:06:26]} 11. Bd4 {[%clk 01:05:43]} {[%emt 00:00:56]} Qb4 {[%clk 01:08:29]}
{[%emt 00:02:56]} 12. Qd3 {[%clk 01:02:25]} {[%emt 00:03:48]} d6 {[%clk
00:55:35]} {[%emt 00:13:25]} 13. Rab1 {[%clk 01:00:42]} {[%emt 00:02:13]} Qa5
{[%clk 00:55:04]} {[%emt 00:01:01]} 14. Rfe1 {[%clk 00:59:23]} {[%emt
00:01:48]} Nd7 {[%clk 00:53:07]} {[%emt 00:02:27]} 15. Bxg7 {[%clk 00:58:35]}
{[%emt 00:01:18]} Kxg7 {[%clk 00:53:34]} {[%emt 00:00:03]} 16. f4 {[%clk
00:57:58]} {[%emt 00:01:07]} Nb6 {[%clk 00:48:06]} {[%emt 00:05:59]} 17. Bb3
{[%clk 00:55:37]} {[%emt 00:02:51]} Qc5+ {[%clk 00:40:37]} {[%emt 00:07:58]} 18.
Kh1 {[%clk 00:52:45]} {[%emt 00:03:22]} a5 {[%clk 00:39:14]} {[%emt 00:01:53]}
19. a4 {[%clk 00:52:57]} {[%emt 00:00:18]} e6 {[%clk 00:35:55]} {[%emt
00:03:49]} 20. Qf3 {[%clk 00:46:26]} {[%emt 00:07:01]} Ra7 {[%clk 00:29:50]}
{[%emt 00:06:36]} 21. g4 {[%clk 00:43:45]} {[%emt 00:03:10]} f5 {[%clk
00:22:49]} {[%emt 00:07:32]} 22. gxf5 {[%clk 00:42:10]} {[%emt 00:02:05]} exf5
{[%clk 00:22:54]} {[%emt 00:00:25]} 23. e5 {[%clk 00:38:42]} {[%emt 00:03:57]}
d5 {[%clk 00:21:40]} {[%emt 00:01:44]} 24. Rbd1 {[%clk 00:37:55]} {[%emt
00:01:17]} Re7 {[%clk 00:17:23]} {[%emt 00:04:47]} 25. Ne2 {[%clk 00:36:42]}
{[%emt 00:01:43]} Bb7 {[%clk 00:15:56]} {[%emt 00:01:58]} 26. Nd4 {[%clk
00:33:50]} {[%emt 00:03:21]} Na8 {[%clk 00:12:43]} {[%emt 00:03:43]} 27. Qf2
{[%clk 00:21:37]} {[%emt 00:12:43]} Kh8 {[%clk 00:12:33]} {[%emt 00:00:40]} 28.
Qh4 {[%clk 00:21:03]} {[%emt 00:01:03]} Nc7 {[%clk 00:10:48]} {[%emt 00:02:16]}
29. Rg1 {[%clk 00:20:54]} {[%emt 00:00:39]} Rg7 {[%emt 00:09:41]} 30. Qh6
{[%clk 00:14:49]} Qe7 {[%clk 00:07:08]} {[%emt 00:01:34]} 31. h4 {[%clk
00:14:34]} {[%emt 00:00:45]} c5 {[%clk 00:05:35]} {[%emt 00:02:04]} 32. Nb5
{[%clk 00:14:19]} {[%emt 00:00:44]} Nxb5 {[%clk 00:04:41]} {[%emt 00:01:24]} 33.
axb5 {[%clk 00:14:43]} {[%emt 00:00:06]} c4 {[%clk 00:04:43]} {[%emt 00:00:28]}
34. Ba2 {[%clk 00:14:44]} {[%emt 00:00:30]} Qa3 {[%clk 00:04:00]} {[%emt
00:01:13]} 35. Kh2 {[%clk 00:11:50]} {[%emt 00:03:24]} Qxa2 {[%clk 00:03:42]}
{[%emt 00:00:48]} 36. Rxg6 {[%clk 00:12:07]} {[%emt 00:00:12]} Qxc2+ {[%clk
00:03:33]} {[%emt 00:00:39]} 37. Kh3 {[%clk 00:12:26]} {[%emt 00:00:10]} Qb3+
{[%clk 00:03:45]} {[%emt 00:00:19]} 38. Kh2 {[%clk 00:11:34]} {[%emt 00:01:23]}
Qb2+ {[%clk 00:04:04]} {[%emt 00:00:10]} 39. Kh1 {[%clk 00:11:15]} {[%emt
00:00:48]} d4+ {[%clk 00:04:21]} {[%emt 00:00:14]} 0-1

[Event "Masterklassen 2025"]
[Site "Uppsala, Sweden"]
[Date "2025.07.04"]
[Round "7.11"]
[White "Soppela, Toni"]
[Black "Jonsson, Jacob"]
[Result "1/2-1/2"]
[TimeControl "90 min for 40 move + 30 min with an increment of 30 sec starting move 1"]
[WhiteFideId "1766163"]
[BlackFideId "1726315"]
[WhiteElo "2090"]
[BlackElo "2112"]

1. d4 {[%clk 01:29:03]} {[%emt 00:01:57]} Nf6 {[%clk 01:30:56]} {[%emt
00:00:04]} 2. c4 {[%clk 01:29:29]} {[%emt 00:00:04]} e6 {[%clk 01:31:23]}
{[%emt 00:00:04]} 3. Nc3 {[%clk 01:29:54]} {[%emt 00:00:05]} d5 {[%clk
01:31:50]} {[%emt 00:00:04]} 4. cxd5 {[%clk 01:30:10]} {[%emt 00:00:13]} exd5
{[%clk 01:32:14]} {[%emt 00:00:06]} 5. Bg5 {[%clk 01:30:31]} {[%emt 00:00:08]}
c6 {[%clk 01:32:40]} {[%emt 00:00:05]} 6. Qc2 {[%clk 01:30:47]} {[%emt
00:00:13]} Be7 {[%clk 01:33:02]} {[%emt 00:00:09]} 7. e3 {[%clk 01:31:05]}
{[%emt 00:00:12]} Nbd7 {[%clk 01:33:27]} {[%emt 00:00:04]} 8. Bd3 {[%clk
01:31:22]} {[%emt 00:00:13]} Nh5 {[%clk 01:33:52]} {[%emt 00:00:05]} 9. Bxe7
{[%clk 01:31:36]} {[%emt 00:00:16]} Qxe7 {[%clk 01:34:17]} {[%emt 00:00:06]} 10.
Nge2 {[%clk 01:31:43]} {[%emt 00:00:23]} g6 {[%clk 01:34:39]} {[%emt 00:00:08]}
11. O-O {[%clk 01:31:33]} {[%emt 00:00:38]} O-O {[%clk 01:35:03]} {[%emt
00:00:07]} 12. Rab1 {[%clk 01:31:32]} {[%emt 00:00:32]} a5 {[%clk 01:32:06]}
{[%emt 00:03:27]} 13. a3 {[%clk 01:31:31]} {[%emt 00:00:31]} Ng7 {[%clk
01:31:09]} {[%emt 00:01:26]} 14. Rfe1 {[%clk 01:27:23]} {[%emt 00:04:38]} Nf6
{[%clk 01:28:12]} {[%emt 00:03:28]} 15. Ng3 {[%clk 01:23:16]} {[%emt 00:04:37]}
Rd8 {[%clk 01:23:49]} {[%emt 00:04:53]} 16. Rbd1 {[%clk 01:22:59]} {[%emt
00:00:46]} 1/2-1/2

[Event "Masterklassen 2025"]
[Site "Uppsala, Sweden"]
[Date "2025.07.04"]
[Round "7.12"]
[White "Kingsley, Elias"]
[Black "Mardell, Jimmy"]
[Result "0-1"]
[TimeControl "90 min for 40 move + 30 min with an increment of 30 sec starting move 1"]
[WhiteFideId "1775006"]
[BlackFideId "1705610"]
[WhiteElo "2072"]
[BlackElo "2227"]

1. d4 {[%clk 01:30:56]} {[%emt 00:00:02]} d5 {[%clk 01:30:49]} {[%emt
00:00:12]} 2. c4 {[%clk 01:31:03]} {[%emt 00:00:23]} c6 {[%clk 01:31:07]}
{[%emt 00:00:13]} 3. Nf3 {[%clk 01:31:09]} {[%emt 00:00:23]} Nf6 {[%clk
01:31:30]} {[%emt 00:00:07]} 4. cxd5 {[%clk 01:30:50]} {[%emt 00:00:49]} cxd5
{[%clk 01:31:54]} {[%emt 00:00:07]} 5. Nc3 {[%clk 01:30:46]} {[%emt 00:00:33]}
Nc6 {[%clk 01:32:12]} {[%emt 00:00:12]} 6. Bf4 {[%clk 01:31:02]} {[%emt
00:00:13]} a6 {[%clk 01:32:08]} {[%emt 00:00:35]} 7. e3 {[%clk 01:31:10]}
{[%emt 00:00:22]} Bg4 {[%clk 01:30:50]} {[%emt 00:01:48]} 8. Bd3 {[%clk
01:30:23]} {[%emt 00:01:16]} e6 {[%clk 01:30:46]} {[%emt 00:00:35]} 9. O-O
{[%clk 01:30:24]} {[%emt 00:00:29]} Bd6 {[%clk 01:29:57]} {[%emt 00:01:19]} 10.
Bxd6 {[%clk 01:29:50]} {[%emt 00:01:05]} Qxd6 {[%clk 01:30:19]} {[%emt
00:00:07]} 11. Rc1 {[%clk 01:29:22]} {[%emt 00:00:58]} O-O {[%clk 01:29:02]}
{[%emt 00:01:47]} 12. a3 {[%clk 01:27:35]} {[%emt 00:02:16]} Rac8 {[%clk
01:24:42]} {[%emt 00:04:51]} 13. Ne2 {[%clk 01:18:01]} {[%emt 00:10:03]} Ne4
{[%clk 01:05:27]} {[%emt 00:19:46]} 14. Nd2 {[%clk 01:12:18]} {[%emt 00:06:13]}
Bf5 {[%clk 00:58:00]} {[%emt 00:07:56]} 15. Bxe4 {[%clk 01:07:50]} {[%emt
00:04:58]} Bxe4 {[%clk 00:58:18]} {[%emt 00:00:13]} 16. Nxe4 {[%clk 00:51:19]}
{[%emt 00:17:01]} dxe4 {[%clk 00:58:19]} {[%emt 00:00:29]} 17. Qb3 {[%clk
00:37:48]} {[%emt 00:14:01]} b5 {[%clk 00:52:41]} {[%emt 00:06:07]} 18. Qc3
{[%clk 00:30:49]} {[%emt 00:07:29]} Ne7 {[%clk 00:48:39]} {[%emt 00:04:33]} 19.
Qa5 {[%clk 00:30:52]} {[%emt 00:00:27]} Nd5 {[%clk 00:45:38]} {[%emt 00:03:31]}
20. Nc3 {[%clk 00:25:23]} {[%emt 00:05:59]} f5 {[%clk 00:40:45]} {[%emt
00:05:23]} 21. Nxd5 {[%clk 00:17:12]} {[%emt 00:08:41]} exd5 {[%clk 00:41:06]}
{[%emt 00:00:09]} 22. Qb4 {[%clk 00:08:05]} {[%emt 00:09:37]} Qxb4 {[%clk
00:34:28]} {[%emt 00:07:08]} 23. axb4 {[%clk 00:08:33]} {[%emt 00:00:02]} Rc4
{[%clk 00:34:47]} {[%emt 00:00:11]} 24. Rxc4 {[%clk 00:08:55]} {[%emt
00:00:08]} bxc4 {[%clk 00:35:06]} {[%emt 00:00:11]} 25. Ra1 {[%clk 00:09:11]}
{[%emt 00:00:13]} Rb8 {[%clk 00:35:25]} {[%emt 00:00:11]} 26. g4 {[%clk
00:01:56]} {[%emt 00:07:45]} f4 {[%clk 00:15:01]} {[%emt 00:20:55]} 27. exf4
{[%clk 00:02:01]} {[%emt 00:00:25]} Rxb4 {[%clk 00:15:27]} {[%emt 00:00:04]} 28.
Rxa6 {[%clk 00:02:21]} {[%emt 00:00:11]} Rxb2 {[%clk 00:15:51]} {[%emt
00:00:05]} 29. Ra5 {[%clk 00:01:33]} {[%emt 00:01:18]} Rd2 {[%clk 00:15:01]}
{[%emt 00:01:19]} 30. Rxd5 {[%clk 00:01:46]} {[%emt 00:00:18]} c3 {[%clk
00:15:22]} {[%emt 00:00:09]} 31. Rc5 {[%clk 00:01:26]} {[%emt 00:00:49]} c2
{[%clk 00:15:43]} {[%emt 00:00:10]} 32. Kg2 {[%clk 00:01:09]} {[%emt 00:00:46]}
e3 {[%clk 00:15:57]} {[%emt 00:00:17]} 33. Rc8+ {[%clk 00:00:54]} {[%emt
00:00:45]} Kf7 {[%clk 00:16:22]} {[%emt 00:00:06]} 34. Rc7+ {[%clk 00:01:13]}
{[%emt 00:00:10]} Ke6 {[%clk 00:15:22]} {[%emt 00:01:30]} 35. d5+ {[%clk
00:01:14]} {[%emt 00:00:29]} Kd6 {[%clk 00:15:12]} {[%emt 00:00:40]} 0-1

[Event "Masterklassen 2025"]
[Site "Uppsala, Sweden"]
[Date "2025.07.04"]
[Round "7.13"]
[White "Lundberg, David"]
[Black "Lind, Jan-Olov"]
[Result "1-0"]
[TimeControl "90 min for 40 move + 30 min with an increment of 30 sec starting move 1"]
[WhiteFideId "1707051"]
[BlackFideId "1701193"]
[WhiteElo "2193"]
[BlackElo "2057"]

1. e4 {[%clk 01:30:46]} {[%emt 00:00:13]} c5 {[%clk 01:30:38]} {[%emt
00:00:23]} 2. Nf3 {[%clk 01:30:58]} {[%emt 00:00:18]} g6 {[%clk 01:30:58]}
{[%emt 00:00:10]} 3. d4 {[%clk 01:31:20]} {[%emt 00:00:06]} cxd4 {[%clk
01:31:24]} {[%emt 00:00:06]} 4. Nxd4 {[%clk 01:31:43]} {[%emt 00:00:06]} Bg7
{[%clk 01:31:10]} {[%emt 00:00:44]} 5. c4 {[%clk 01:32:07]} {[%emt 00:00:07]}
Nc6 {[%clk 01:31:30]} {[%emt 00:00:10]} 6. Be3 {[%clk 01:32:11]} {[%emt
00:00:25]} Nf6 {[%clk 01:31:46]} {[%emt 00:00:14]} 7. Nc3 {[%clk 01:32:25]}
{[%emt 00:00:17]} O-O {[%clk 01:32:02]} {[%emt 00:00:14]} 8. Be2 {[%clk
01:32:47]} {[%emt 00:00:07]} d6 {[%clk 01:32:25]} {[%emt 00:00:07]} 9. f3
{[%clk 01:22:48]} {[%emt 00:10:29]} Bd7 {[%clk 01:25:48]} {[%emt 00:07:06]} 10.
Qd2 {[%clk 01:23:07]} {[%emt 00:00:11]} Nxd4 {[%clk 01:17:04]} {[%emt
00:09:15]} 11. Bxd4 {[%clk 01:21:41]} {[%emt 00:01:57]} Bc6 {[%clk 01:17:03]}
{[%emt 00:00:30]} 12. O-O-O {[%clk 01:20:48]} {[%emt 00:01:23]} a6 {[%clk
01:17:16]} {[%emt 00:00:17]} 13. g4 {[%clk 01:19:09]} {[%emt 00:02:08]} b5
{[%clk 01:05:27]} {[%emt 00:12:20]} 14. h4 {[%clk 01:15:07]} {[%emt 00:04:31]}
Qa5 {[%clk 00:59:32]} {[%emt 00:06:26]} 15. Kb1 {[%clk 00:58:15]} {[%emt
00:17:23]} Rfe8 {[%clk 00:47:22]} {[%emt 00:12:39]} 16. h5 {[%clk 00:51:43]}
{[%emt 00:07:02]} Rab8 {[%clk 00:43:52]} {[%emt 00:04:01]} 17. hxg6 {[%clk
00:50:41]} {[%emt 00:01:32]} hxg6 {[%clk 00:32:38]} {[%emt 00:11:43]} 18. g5
{[%clk 00:23:29]} {[%emt 00:27:42]} Nh5 {[%clk 00:31:04]} {[%emt 00:02:04]} 19.
Bxg7 {[%clk 00:16:02]} {[%emt 00:07:57]} Kxg7 {[%clk 00:31:21]} {[%emt
00:00:13]} 20. Qd4+ {[%clk 00:09:49]} {[%emt 00:06:44]} Kg8 {[%clk 00:21:03]}
{[%emt 00:10:47]} 21. f4 {[%clk 00:07:38]} {[%emt 00:02:42]} Qb6 {[%clk
00:07:27]} {[%emt 00:14:06]} 22. Qxb6 {[%clk 00:06:28]} {[%emt 00:01:39]} Rxb6
{[%clk 00:07:52]} {[%emt 00:00:06]} 23. Bxh5 {[%clk 00:04:55]} {[%emt
00:02:02]} gxh5 {[%clk 00:08:08]} {[%emt 00:00:14]} 24. cxb5 {[%clk 00:02:52]}
{[%emt 00:02:33]} axb5 {[%clk 00:08:21]} {[%emt 00:00:17]} 25. Nd5 {[%clk
00:00:50]} {[%emt 00:02:33]} Bxd5 {[%clk 00:08:17]} {[%emt 00:00:33]} 26. Rxd5
{[%clk 00:01:13]} {[%emt 00:00:08]} Ra8 {[%clk 00:07:55]} {[%emt 00:00:51]} 27.
b3 {[%clk 00:01:12]} {[%emt 00:00:32]} Rc8 {[%clk 00:06:45]} {[%emt 00:01:40]}
28. Rxh5 {[%clk 00:00:52]} {[%emt 00:00:49]} Rc3 {[%clk 00:06:15]} {[%emt
00:00:59]} 29. Rd2 {[%clk 00:01:04]} {[%emt 00:00:19]} Rf3 {[%clk 00:01:44]}
{[%emt 00:05:02]} 30. f5 {[%clk 00:01:29]} {[%emt 00:00:05]} Rf1+ {[%clk
00:01:58]} {[%emt 00:00:16]} 31. Kb2 {[%clk 00:01:58]} {[%emt 00:00:01]} f6
{[%clk 00:00:37]} {[%emt 00:01:51]} 32. g6 {[%clk 00:02:09]} {[%emt 00:00:19]}
e6 {[%clk 00:00:50]} {[%emt 00:00:17]} 33. Rdh2 {[%clk 00:02:07]} {[%emt
00:00:31]} exf5 {[%clk 00:00:53]} {[%emt 00:00:27]} 34. exf5 {[%clk 00:02:09]}
{[%emt 00:00:27]} Kf8 {[%clk 00:00:39]} {[%emt 00:00:46]} 35. Rh8+ {[%clk
00:02:36]} {[%emt 00:00:03]} 1-0

[Event "Masterklassen 2025"]
[Site "Uppsala, Sweden"]
[Date "2025.07.04"]
[Round "7.14"]
[White "Darnell, Anton"]
[Black "Wakeham, Daniel"]
[Result "0-1"]
[TimeControl "90 min for 40 move + 30 min with an increment of 30 sec starting move 1"]
[WhiteFideId "1720244"]
[BlackFideId "1705482"]
[WhiteElo "2007"]
[BlackElo "2045"]

1. d4 {[%clk 01:30:55]} {[%emt 00:00:04]} e6 {[%clk 01:30:47]} {[%emt
00:00:14]} 2. c4 {[%clk 01:30:39]} {[%emt 00:00:47]} Nf6 {[%clk 01:31:05]}
{[%emt 00:00:11]} 3. Nf3 {[%clk 01:30:27]} {[%emt 00:00:43]} Bb4+ {[%clk
01:29:22]} {[%emt 00:02:13]} 4. Bd2 {[%clk 01:30:30]} {[%emt 00:00:26]} Qe7
{[%clk 01:29:43]} {[%emt 00:00:09]} 5. g3 {[%clk 01:28:07]} {[%emt 00:02:52]}
Nc6 {[%clk 01:29:52]} {[%emt 00:00:22]} 6. Nc3 {[%clk 01:27:17]} {[%emt
00:01:20]} a5 {[%clk 01:26:24]} {[%emt 00:03:59]} 7. Bg2 {[%clk 01:24:59]}
{[%emt 00:02:47]} d6 {[%clk 01:23:34]} {[%emt 00:03:21]} 8. O-O {[%clk
01:23:27]} {[%emt 00:02:01]} O-O {[%clk 01:22:01]} {[%emt 00:02:03]} 9. Rc1
{[%clk 01:16:13]} {[%emt 00:07:44]} e5 {[%clk 01:20:13]} {[%emt 00:02:18]} 10.
Bg5 {[%clk 01:13:22]} {[%emt 00:03:21]} Bxc3 {[%clk 01:18:00]} {[%emt
00:02:44]} 11. Rxc3 {[%clk 01:12:01]} {[%emt 00:01:51]} h6 {[%clk 01:16:32]}
{[%emt 00:01:58]} 12. Bxf6 {[%clk 01:10:10]} {[%emt 00:02:20]} Qxf6 {[%clk
01:16:56]} {[%emt 00:00:06]} 13. d5 {[%clk 01:05:39]} {[%emt 00:05:01]} Nb4
{[%clk 01:12:56]} {[%emt 00:04:31]} 14. a3 {[%clk 00:54:46]} {[%emt 00:11:23]}
Na6 {[%clk 01:13:13]} {[%emt 00:00:13]} 15. Nd2 {[%clk 00:54:36]} {[%emt
00:00:39]} Qg6 {[%clk 00:54:59]} {[%emt 00:18:44]} 16. e4 {[%clk 00:47:22]}
{[%emt 00:07:44]} Bd7 {[%clk 00:54:19]} {[%emt 00:01:10]} 17. b3 {[%clk
00:42:04]} {[%emt 00:05:48]} f5 {[%clk 00:48:12]} {[%emt 00:06:38]} 18. f4
{[%clk 00:40:19]} {[%emt 00:02:14]} Rae8 {[%clk 00:47:24]} {[%emt 00:01:18]} 19.
Qb1 {[%clk 00:32:16]} {[%emt 00:08:33]} Nc5 {[%clk 00:40:18]} {[%emt 00:07:36]}
20. fxe5 {[%clk 00:25:03]} {[%emt 00:07:44]} Rxe5 {[%clk 00:26:56]} {[%emt
00:13:52]} 21. Rcf3 {[%clk 00:13:04]} {[%emt 00:12:28]} Rf6 {[%clk 00:26:36]}
{[%emt 00:00:50]} 22. Rf4 {[%clk 00:11:36]} {[%emt 00:01:58]} Nxe4 {[%clk
00:18:09]} {[%emt 00:08:57]} 23. Nxe4 {[%clk 00:09:03]} {[%emt 00:03:03]} fxe4
{[%clk 00:18:27]} {[%emt 00:00:13]} 24. Bxe4 {[%clk 00:08:49]} {[%emt
00:00:44]} Qg5 {[%clk 00:18:34]} {[%emt 00:00:22]} 25. Qd3 {[%clk 00:07:50]}
{[%emt 00:01:29]} Bh3 {[%clk 00:15:05]} {[%emt 00:03:59]} 26. R1f2 {[%clk
00:05:46]} {[%emt 00:02:35]} Kf7 {[%clk 00:08:48]} {[%emt 00:06:46]} 27. b4
{[%clk 00:04:42]} {[%emt 00:01:34]} axb4 {[%clk 00:07:40]} {[%emt 00:01:39]} 28.
axb4 {[%clk 00:05:11]} {[%emt 00:00:01]} Ke7 {[%clk 00:07:09]} {[%emt
00:01:00]} 29. c5 {[%clk 00:04:52]} {[%emt 00:00:50]} Rxf4 {[%clk 00:04:11]}
{[%emt 00:03:28]} 30. Rxf4 {[%clk 00:04:41]} {[%emt 00:00:40]} Kd8 {[%clk
00:02:48]} {[%emt 00:01:53]} 31. cxd6 {[%clk 00:03:14]} {[%emt 00:01:58]} cxd6
{[%clk 00:03:17]} 32. Qb5 {[%clk 00:02:19]} {[%emt 00:01:25]} Qe7 {[%clk
00:02:56]} {[%emt 00:00:50]} 33. Qa5+ {[%clk 00:00:59]} {[%emt 00:01:50]} Kc8
{[%clk 00:02:45]} {[%emt 00:00:42]} 34. Qa8+ {[%clk 00:00:51]} {[%emt
00:00:38]} Kc7 {[%clk 00:03:12]} {[%emt 00:00:03]} 35. Qa5+ {[%clk 00:00:51]}
{[%emt 00:00:29]} Kb8 {[%clk 00:03:23]} {[%emt 00:00:19]} 36. Bg2 {[%clk
00:00:35]} {[%emt 00:00:46]} Re1+ {[%clk 00:03:07]} {[%emt 00:00:46]} 37. Rf1
{[%clk 00:00:32]} {[%emt 00:00:33]} Qe3+ {[%clk 00:02:58]} {[%emt 00:00:40]} 38.
Kh1 {[%clk 00:00:53]} {[%emt 00:00:08]} Rxf1+ {[%clk 00:02:59]} {[%emt
00:00:29]} 0-1